Cogmind - Beta 14 @@@ ROGUE MODE // 2025.03.05 @ 11:20:26 Player: Willow Result: Destroyed by D-53 Grenadier with Mini Grenade Launcher Performance ------------- Evolutions (0) 0 Regions Visited (4) 800 Robots Destroyed (37) 185 Value Destroyed (635) 635 Prototype IDs (39) 780 Alien Tech Used (0) 0 Bonus (279) 279 TOTAL SCORE: 2679 Bonus ------- Follower Combat Kills 35 Aligned with FarCom 300 Friendly Fire -56 Cogmind --------- Core Integrity 0/250 Matter 224/300 Energy 50/100 System Corruption 1% Temperature Cool (0) Movement Treading (160) Location -9/Mines Parts ------- > --- POWER (1) -------- (None) > --- PROPULSION (2) --- Light Treads Light Treads > --- UTILITY (2) ------ Medium Storage Unit > --- WEAPON (2) ------- Medium Laser > --- INVENTORY (10) --- Light Treads Light Treads Light Treads High-capacity Storage Unit High-capacity Matter Pod (190) Hacking Suite Latent Energy Streamer Rocket Launcher Datajack Peak State ------------ > --- POWER ------------ Ion Engine > --- PROPULSION ------- Light Treads Light Treads > --- UTILITY ---------- Medium Storage Unit > --- WEAPON ----------- Medium Laser Latent Energy Streamer > --- INVENTORY -------- Light Treads Light Treads Light Treads Light Treads High-capacity Storage Unit High-capacity Matter Pod Hacking Suite Medium Laser Rocket Launcher Datajack [Rating: 16] Favorites ----------- Power Ion Engine Engine Ion Engine Propulsion Light Treads Treads Light Treads Utility Medium Storage Unit Device Seismic Detector Storage Medium Storage Unit Weapon Medium Laser Energy Gun Medium Laser Energy Cannon Latent Energy Streamer Ballistic Gun Assault Rifle Launcher Grenade Launcher Special Melee Weapon Datajack Build | -11 -10 -10 -10 -9 ------- Run | Yrd Mat Min Exi Min Slots Evolved . | . . . . . Power . | . . . . . Propulsion . | . . . . . Utility . | . . . . . Weapon . | . . . . . Parts Attached 24 | 7 10 1 2 4 Power 3 | 1 2 . . . Engine 3 | 1 2 . . . Core . | . . . . . Reactor . | . . . . . Propulsion 9 | 2 5 . 1 1 Treads 9 | 2 5 . 1 1 Leg . | . . . . . Wheel . | . . . . . Hover . | . . . . . Flight . | . . . . . Utility 3 | 2 1 . . . Device 1 | 1 . . . . Storage 2 | 1 1 . . . Processor . | . . . . . Hackware . | . . . . . Protection . | . . . . . Artifact . | . . . . . Weapon 9 | 2 2 1 1 3 Energy Gun 3 | 1 . 1 . 1 Energy Cannon 1 | . . . . 1 Ballistic Gun 2 | 1 1 . . . Ballistic Cannon . | . . . . . Launcher 2 | . 1 . . 1 Special Weapon . | . . . . . Impact Weapon . | . . . . . Slashing Weapon . | . . . . . Piercing Weapon . | . . . . . Special Melee Weapon 1 | . . . 1 . Unidentified Prototypes . | . . . . . Parts Lost 5 | . 2 . . 3 Power 2 | . 1 . . 1 Propulsion 1 | . . . . 1 Utility 1 | . 1 . . . Weapon 1 | . . . . 1 Highest Loss Streak 3 | . 2 . . 3 To Critical Strikes . | . . . . . Average Slot Usage (%) 90 | . 97 85 85 82 Engine 13 | . 13 14 14 12 Treads 27 | . 27 28 28 28 Device 5 | . 12 . . . Storage 14 | . 14 14 14 14 Energy Gun 14 | . 14 14 14 14 Ballistic Gun 6 | . 13 . . . Launcher 4 | . . 14 2 12 Special Melee Weapon 3 | . . . 11 . Peak Build Rating 16 | 7 8 7 8 16 Average Rating 7 | 5 7 7 7 9 On Entrance 5 | . 7 7 7 8 Naked Turns . | . . . . . Heaviest Build 21 | 15 20 20 20 21 Greatest Support 40 | 40 40 40 40 40 Greatest Overweight (x) 4 | 4 . . . . Average Overweight (x) . | . . . . . Largest Inventory Capacity 10 | 8 10 10 10 10 Average Capacity 9 | 7 8 10 10 10 Most Carried 10 | 2 10 10 10 10 Average Carried 8 | 1 7 9 9 9 Final Capacity 10 | 8 10 10 10 10 Final Carried 10 | 2 10 10 10 9 Class Distribution -------------------- 100% | Mutant Dominant Class ---------------- Mutant | -10/Materials Mutant | -10/Mines Mutant | -10/Exiles Mutant | -9/Mines Resources | -11 -10 -10 -10 -9 ----------- Run | Yrd Mat Min Exi Min Matter Collected 631 | 288 268 51 10 14 Remotely . | . . . . . Salvage Created 1063 | 164 831 13 . 55 Parts 76 | 10 62 3 . 1 Haulers Intercepted 2 | . 2 . . . Recyclers Shooed . | . . . . . Parts Field Recycled . | . . . . . Retrieved Matter . | . . . . . Parts Self-Destructed . | . . . . . Prevented . | . . . . . Kills | -11 -10 -10 -10 -9 ------- Run | Yrd Mat Min Exi Min Combat Hostiles Destroyed 39 | . 19 1 . 19 Guns 17 | . 16 1 . . AOE 22 | . 3 . . 19 Classes Destroyed 11 | 2 7 . . 2 Worker 2 | . 2 . . . Builder 1 | . 1 . . . Tunneler 5 | 4 . 1 . . Hauler 2 | . 2 . . . Recycler 2 | 1 1 . . . Operator 1 | . 1 . . . Watcher 3 | . 3 . . . Swarmer 10 | . 9 1 . . Grunt 10 | . 10 . . . Zionite 1 | . . . . 1 Assembled 19 | . . . . 19 Best Kill Streak 19 | 3 4 1 . 19 Combat Bots Only 19 | . 3 1 . 19 Max Kills in Single Turn 8 | 1 2 1 . 8 Gunslinging 1 | . 1 . . . Exploded 7 | . 2 . . 7 Melee . | . . . . . Uniques/NPCs Destroyed . | . . . . . Combat | -11 -10 -10 -10 -9 -------- Run | Yrd Mat Min Exi Min Hostile Shots Fired 107 | . 78 2 . 27 Missed 35 | . 25 1 . 9 Damage Taken 1183 | . 568 96 . 519 Core 265 | . 95 . . 170 Absorbed by Shields . | . . . . . Core Remaining (%) 100 | 100 . . . . Volleys Fired 83 | 6 67 2 . 8 Largest 2 | 2 2 1 . 1 Hottest 70 | 70 70 50 . 60 Shots Fired 152 | 12 130 2 . 8 Gun 142 | 12 126 2 . 2 Cannon 1 | . . . . 1 Launcher 9 | . 4 . . 5 Special . | . . . . . Kinetic 69 | 6 63 . . . Thermal 73 | 6 63 2 . 2 Explosive 9 | . 4 . . 5 Electromagnetic 1 | . . . . 1 Robot Hit Streak 12 | 3 12 1 . 2 Robot Miss Streak 4 | 1 4 2 . 4 Penetration Max . | . . . . . Secondary Targets 2 | . 2 . . . Max Gunslinging Chain 1 | . 1 . . . Shots Hit Robots 99 | 9 81 1 5 3 Core Hits 91 | 6 44 1 . 40 Critical Kills 1 | . 1 . . . Critical Parts Destroyed . | . . . . . Critical Strikes 5 | . 5 . . . Burn 4 | . 4 . . . Destroy 1 | . 1 . . . Melee Attacks 5 | . . . 5 . Impact . | . . . . . Slashing . | . . . . . Piercing . | . . . . . Sneak Attacks 4 | . . . 4 . Combat Hostiles . | . . . . . Follow-up Attacks . | . . . . . Damage Inflicted 2707 | 129 1255 16 . 1307 Guns 1268 | 129 1101 13 . 25 Cannons 6 | . . . . 6 Explosions 1421 | . 145 . . 1276 Melee . | . . . . . Ramming 12 | . 9 3 . . Kinetic 566 | 80 486 . . . Thermal 702 | 49 615 13 . 25 Explosive 1391 | . 145 . . 1246 Electromagnetic 36 | . . . . 36 Impact . | . . . . . Slashing . | . . . . . Piercing . | . . . . . Highest Corruption 1 | . . . . 1 Average Corruption 1 | . . . . 1 Corruption Purged . | . . . . . Corruption Blocked . | . . . . . Overload Shots . | . . . . . Overflow Damage 12 | . . . . 12 Projectiles . | . . . . . Explosions 12 | . . . . 12 Melee . | . . . . . Knockbacks . | . . . . . Impact . | . . . . . Kinetic . | . . . . . Secondary . | . . . . . Self-Inflicted Damage 21 | . 21 . . . Shots 1 | . 1 . . . Rammed 4 | . 2 2 . . Targets Rammed 5 | . 2 3 . . Kicked . | . . . . . Crushed 1 | . . 1 . . Highest Temperature 121 | 36 121 20 . 15 Average Temperature 33 | 16 36 9 . 12 Received Heat Transfer 252 | . 228 24 . . Siege Activations . | . . . . . Robots Corrupted . | . . . . . Combat Hostiles . | . . . . . Parts Fried . | . . . . . Impact Corruptions . | . . . . . Robots Melted . | . . . . . Combat Hostiles . | . . . . . Parts Melted 1 | . 1 . . . Heat Transferred 2331 | 148 2072 37 . 74 Parts Sabotaged . | . . . . . Parts Stolen . | . . . . . Parts Stripped . | . . . . . Power Chain Reactions . | . . . . . Latent Energy Used 26 | . . . . 26 LE Corruption 1 | . . . . 1 Alert | -11 -10 -10 -10 -9 ------- Run | Yrd Mat Min Exi Min Peak Influence 368 | 25 368 234 . 30 Initial 99 | . 16 99 . . Average 85 | 10 90 104 . 22 Maximum Alert Level 1 | . 1 1 . . Low Security (%) 91 | 100 90 90 . 100 Level 1 8 | . 9 9 . . Level 2 . | . . . . . Level 3 . | . . . . . Level 4 . | . . . . . Level 5 . | . . . . . High Security . | . . . . . Max Security . | . . . . . Squads Dispatched 3 | . 3 . . . Investigation 2 | . 2 . . . Extermination . | . . . . . Reinforcement 1 | . 1 . . . Assault . | . . . . . Garrison . | . . . . . Intercept . | . . . . . Searches Triggered . | . . . . . Construction Impeded . | . . . . . Haulers Reinforced . | . . . . . Active Scanning Responses . | . . . . . Cargo Convoy Interrupts . | . . . . . Stealth | -11 -10 -10 -10 -9 --------- Run | Yrd Mat Min Exi Min Distress Signals 1 | . 1 . . . Communications Jammed . | . . . . . Distress Signals . | . . . . . Times Spotted 57 | . 32 3 . 22 Peak Tracking Total 20 | . 4 3 . 20 Tactical Retreats 2 | . 2 . . . Traps | -11 -10 -10 -10 -9 ------- Run | Yrd Mat Min Exi Min Traps Triggered 2 | . 2 . . . Indirectly . | . . . . . Trap Hack Attempts . | . . . . . Triggered . | . . . . . Disarmed . | . . . . . Reprogrammed . | . . . . . Reused . | . . . . . Traps Extracted . | . . . . . Installed . | . . . . . Triggered . | . . . . . Machines | -11 -10 -10 -10 -9 ---------- Run | Yrd Mat Min Exi Min Machines Disabled 6 | . 2 4 . . Max in Single Turn 1 | . 1 . . . Machines Repaired . | . . . . . Machines Dismantled . | . . . . . Machines Sabotaged . | . . . . . Overloaded Fab Kills . | . . . . . Hacking | -11 -10 -10 -10 -9 --------- Run | Yrd Mat Min Exi Min Machines Accessed 12 | . 10 . 2 . Terminals 7 | . 7 . . . Fabricators . | . . . . . Repair Stations 1 | . 1 . . . Recycling Units 2 | . 2 . . . Scanalyzers . | . . . . . Garrison Access . | . . . . . Total Hacks 33 | . 31 . 2 . Successful 17 | . 15 . 2 . Failed 15 | . 15 . . . Catastrophic . | . . . . . Database Lockouts 1 | . 1 . . . Manual 28 | . 27 . 1 . Terminals 26 | . 26 . . . Fabricators . | . . . . . Repair Stations 2 | . 2 . . . Recycling Units 3 | . 3 . . . Scanalyzers . | . . . . . Garrison Access . | . . . . . Terminal Hacks 4 | . 2 . 2 . Record 1 | . . . 1 . Robot Analysis 1 | . 1 . . . Prototype ID Bank 1 | . 1 . . . Derelict Proto ID Bank 1 | . . . 1 . Fabricator Hacks . | . . . . . Repair Station Hacks 1 | . 1 . . . Scan Component 1 | . 1 . . . Recycling Unit Hacks . | . . . . . Scanalyzer . | . . . . . Garrison Access Hacks . | . . . . . Unauthorized Hacks 12 | . 12 . . . Terminals 10 | . 10 . . . Botnet 4 | . 4 . . . Operators 1 | . 1 . . . Skim 5 | . 5 . . . Fabricators . | . . . . . Repair Stations . | . . . . . Recycling Units 2 | . 2 . . . Tunnel 2 | . 2 . . . Scanalyzers . | . . . . . Garrison Access . | . . . . . Data Cores Recovered . | . . . . . Used . | . . . . . Hacking Detections 9 | . 9 . . . Full Trace Events . | . . . . . Feedback Events . | . . . . . Feedback Blocked . | . . . . . Robot Schematics Acquired . | . . . . . Robots Built . | . . . . . Authchips . | . . . . . Time . | . . . . . Total Robot Build Rating . | . . . . . Part Schematics Acquired . | . . . . . Parts Built . | . . . . . Authchips . | . . . . . Time . | . . . . . Total Part Build Rating . | . . . . . Parts Repaired . | . . . . . Time . | . . . . . Parts Recycled . | . . . . . Recycled Matter . | . . . . . Retrieved Matter . | . . . . . Retrieved Components . | . . . . . Parts Scanalyzed . | . . . . . Part Schematics Acquired . | . . . . . Parts Damaged . | . . . . . Bothacking | -11 -10 -10 -10 -9 ------------ Run | Yrd Mat Min Exi Min Used RIF Installer . | . . . . . Robots Hacked 4 | . . . 4 . Non-combat 3 | . . . 3 . Combat 1 | . . . 1 . Robot Hacks Applied 4 | . . . 4 . parse_system 4 | . . . 4 . Relay Couplers Released . | . . . . . Fabnet Peak Effective % . | . . . . . Robots Rewired . | . . . . . Allies Hacked . | . . . . . Hacks Repelled . | . . . . . Allies | -11 -10 -10 -10 -9 -------- Run | Yrd Mat Min Exi Min Total Allies 3 | . . 3 . . Largest Group 3 | . . 3 3 3 Highest-Rated Group 40 | . . 40 40 40 Highest-Rated Ally 16 | . . 16 16 16 Total Orders . | . . . . . Ally Attacks 20 | . . 15 1 4 Total Damage 350 | . . 311 13 26 Kills 5 | . . 5 . . Allies Corrupted . | . . . . . Allies Melted . | . . . . . Intel | -11 -10 -10 -10 -9 ------- Run | Yrd Mat Min Exi Min Robot Analysis Total 1 | . 1 . . . Derelict Logs Recovered 2 | . . 2 . . Drone Launches . | . . . . . Drone Recoveries . | . . . . . Exploration | -11 -10 -10 -10 -9 ------------- Run | Yrd Mat Min Exi Min Turns Passed 2672 | 125 1221 549 678 99 Spaces Moved 1368 | 65 583 318 365 37 Core 26 | 26 . . . . Treads 1342 | 39 583 318 365 37 Legs . | . . . . . Wheels . | . . . . . Hover . | . . . . . Flight . | . . . . . Fastest Speed 50 | 50 160 160 160 160 Average Speed 159 | 146 160 160 160 160 Slowest Speed 250 | 250 160 160 160 160 Overloaded Moves . | . . . . . Propulsion Burnouts . | . . . . . Robots Hopped . | . . . . . Cave-ins Triggered . | . . . . . Exploration Rate (%) 48 | 4 88 70 71 10 Regions Visited 4 Branch Regions 3 Pre-discovered Areas 5 | . 2 2 1 . Known Exits Taken 1 | . 1 . . . Unknown Exits Taken 3 | 1 . 1 1 . Scrap Searched 2 | . . 2 . . Spaces Dug . | . . . . . Terrain Destroyed 60 | . 20 . . 40 Melee . | . . . . . Projectile . | . . . . . AOE 60 | . 20 . . 40 Terrain Rammed . | . . . . . Walls Destroyed . | . . . . . Machines Disabled . | . . . . . Actions | -11 -10 -10 -10 -9 --------- Run | Yrd Mat Min Exi Min Total 1701 | 79 742 355 457 68 Wait 192 | . 62 30 81 19 Move 1364 | 64 582 317 364 37 Hop . | . . . . . Pick Up 16 | 2 11 1 2 . Fast Attach 11 | 7 4 . . . Attach 1 | . . . . 1 Detach . | . . . . . Swap 12 | . 6 1 2 3 Drop 11 | . 8 1 2 . Fire 83 | 6 67 2 . 8 Melee 5 | . . . 5 . Ram . | . . . . . Kick . | . . . . . Crush 5 | . 2 3 . . Escape Stasis . | . . . . . Rewire 1 | . . . 1 . Trap . | . . . . . Miscellaneous . | . . . . . Route ------- -11/Scrapyard -10/Materials (discovered 6 exits: *Mat x3 / *Min x2 / Sub) -10/Mines (discovered 3 exits: *Mat x2 / *Exi) -10/Exiles -9/Mines History --------- Turn | Location | Event 7 | -11/Scrapyard | Discovered new exit (range 16) 126 | -11/Scrapyard | Entered Materials 201 | -10/Materials | Discovered new exit (range 11) 310 | -10/Materials | Build established: Mutant 587 | -10/Materials | Discovered new exit (range 16) 855 | -10/Materials | Discovered new exit (range 4) 1003 | -10/Materials | Identified exit to Mines 1003 | -10/Materials | Identified exit to Materials 1003 | -10/Materials | Identified exit to Subcaves 1052 | -10/Materials | Learned location of 3 exits from Materials 1089 | -10/Materials | Learned location of 3 exits from Materials 1203 | -10/Materials | Learned location of 1 exit from Recycling 1285 | -10/Materials | Central database locked down 1347 | -10/Materials | Entered Mines 1354 | -10/Mines | Received a Rocket Launcher from a helpful Derelict 1383 | -10/Mines | Assisted by bots powering up and referring to "LRC-V3" 1427 | -10/Mines | Discovered exit to Materials (range 8) 1541 | -10/Mines | Learned location of Mines (-9) 1608 | -10/Mines | Learned location of Storage (-9) 1771 | -10/Mines | Discovered exit to Materials (range 4) 1862 | -10/Mines | Deemed a non-threat by the Exiles lab entrance 1863 | -10/Mines | Discovered new exit (range 5) 1896 | -10/Mines | Entered Exiles 1896 | -10/Exiles | Accompanied by 3 allies 1936 | -10/Exiles | Met 8R-AWN 1964 | -10/Exiles | Met EX-HEX 2164 | -10/Exiles | Met EX-DEC 2207 | -10/Exiles | Learned location of Zion (-6) 2234 | -10/Exiles | Met EX-BIN 2258 | -10/Exiles | Aligned with FarCom system 2260 | -10/Exiles | Given EX-Vault access code 2297 | -10/Exiles | Opened EX-Vault 2307 | -10/Exiles | Found Latent Energy Streamer 2337 | -10/Exiles | Warned to stay clear of 0b10 Research branches 2365 | -10/Exiles | Exiles lab attacked by MAIN.C 2558 | -10/Exiles | Discovered new exit (range 11) 2574 | -10/Exiles | Left Exiles lab with Latent Energy Streamer 2574 | -10/Exiles | Entered Mines 2574 | -9/Mines | Accompanied by 3 allies 2575 | -9/Mines | Assembled infested the area 2594 | -9/Mines | Met a Derelict bent on vengeance 2619 | -9/Mines | Destroyed 19 combat bots 2621 | -9/Mines | Lost 4 allies 2666 | -9/Mines | Core integrity fell below 50% 2672 | -9/Mines | Core integrity fell below 20% 2673 | -9/Mines | Destroyed by D-53 Grenadier with Mini Grenade Launcher Last Messages --------------- 02640_ U-05 Engineer lays Concrete. 02647_ U-05 Engineer builds a Wall. 02648_ U-05 Engineer lays Concrete. 02650_ U-05 Engineer builds a Wall. 02657_ U-05 Engineer lays Concrete. 02659_ U-05 Engineer builds a Wall. 02660_ U-05 Engineer lays Concrete. 02661_ The unstable cave ceiling collapses. 02661_ U-05 Engineer builds a Wall. 02665_ C-30 ARC bursts open, deploying its payload. 02665_ D-53 Grenadier unfolds itself. 02665_ U-05 Engineer lays Concrete. 02666_ U-05 Engineer builds a Wall. 02667_ The unstable cave ceiling collapses. 02667_ Ion Engine destroyed. 02668_ U-05 Engineer lays Concrete. 02669_ Med. Laser destroyed. 02669_ U-05 Engineer lays Concrete. 02671_ Lgt. Treads destroyed. Map ----- +----------------------------------------------------+ | ?????????????????????????????????????????????????? | | ?????????????????????????????????????????????????? | | ?????????????????????????????????????????????????? | | ?????????????????????????????????????????????????? | | ?????????????????????????????????????????????????? | | ?????????????????????????????????????????????????? | | ?????????????????????????????????????????????????? | | ?????????????????????????????????????????????????? | | ?????????????????????????????????????????????????? | | ?????????????????????????????????????????????????? | | ?????????????????????????????????????????????????? | | ?????????????????????????????????????????????????? | | ?????????????????????????????????????????????????? | | ?????????????????????????????????????????????????? | | ?????????????????????????????????????????????????? | | ?????????????????????????????????????????????????? | | ??????????????????????????????????#??????????????? | | ?????????????????????????????????? ??????????????? | | ?????????????????????????????????? ??????????????? | | ?????????????????????????????????# #?????????????? | | ??????????????????????#######????# #?????????????? | | ?????????????????????## ##???# #?????????????? | | ????????????????????## ##??# #?????????????? | | ????????????????????# #??# #?????????????? | | ????????????????????# ##### #?????????????? | | ?????????????????????# @ # ## ##????????????? | | ????????????????????# %d ##???????????? | | ????????????????????# d #???????????? | | ????????????????????## #???????????? | | ?????????????????????## #???????????? | | ??????????????????????## ##???????????? | | ???????????????????????# ## ##????????????? | | ???????????????????????## # ## ##?????????????? | | ????????????????????????### # # ##??????????????? | | ???????????????????????## # ####???????????????? | | ???????????????????????# ##????????????????? | | ??????????????????????## #????????????????? | | ?????????????????????## #????????????????? | | ????????????????????## ##????????????????? | | ???????????????????## """ ##?????????????????? | | ???????????????????# """ #??????????????????? | | ???????????????????# """ ##??????????????????? | | ???????????????????## ##???????????????????? | | ????????????????????## ##????????????????????? | | ?????????????????????### #??????????????????????? | | ???????????????????????###???????????????????????? | | ?????????????????????????????????????????????????? | | ?????????????????????????????????????????????????? | | ?????????????????????????????????????????????????? | | | +----------------------------------------------------+ Best States ------------- Heat Dissipation 25 Energy Generation 10 Energy Capacity 250 Matter Stores 300 Matter Capacity 300 Sight Range 16 Terrain Scan Density 10 Evasion (%) 40 Recoil Reduction 2 Item Schematics ----------------- None Robot Schematics ------------------ None Fabricated ------------ Nothing Alien Tech Used ----------------- None Achievements -------------- None Challenges ------------ None Game ------ Seed BattleKineticSuit Manual? 0 Play Time 00:19:16 Cumulative 207.4 hours Start 2025.03.05 @ 11:00:11 End 2025.03.05 @ 11:20:26 Sessions 1 Manual Loads 0 Difficulty Rogue Special Mode None Game No. 100 Rogue 61 Adventurer 36 Explorer 3 Win Type - Total 6 Types 2/1/0/1/0/1/0/1/0 Lore% 67 Gallery% 66 Achievement% 64 Wizard Run 0 Options --------- Layout 1 ASCII 0 Keyboard 0 Movement Arrows Keybinds 0 Fullscreen 1 Font 24/Smallcaps Map View 50x35 Zoom Use 0% Tactical HUD 1 Map Filters NONE Filters NONE Steam 1 RUN: 943fa8ac-23a2-40f2-a8de-80224433b8b9